[Event "Championnat du monde jeunes U12"]
[Date "2024.11.22"]
[White "Lee, Tsuen Jin Aiesec"]
[Black "Sobirov, Afruzbek"]
[WhiteElo "1806"]
[BlackElo "1928"]
[Round "7.33"]
[Result "0-1"]
[TimeControl "5400+30"]

1. e4 {[%clk 1:30:58]} 1... c6 {[%clk 1:30:56]} 2. Nf3 {[%clk 1:31:25]} 2... d5
{[%clk 1:31:20]} 3. Nc3 {[%clk 1:30:53]} 3... dxe4 {[%clk 1:31:43]} 4. Nxe4
{[%clk 1:31:16]} 4... Nf6 {[%clk 1:32:09]} 5. Qe2 {[%clk 1:31:43]} 5... Nxe4
{[%clk 1:32:32]} 6. Qxe4 {[%clk 1:31:52]} 6... Nd7 {[%clk 1:32:56]} 7. d4 {[%clk
1:32:12]} 7... Nf6 {[%clk 1:33:13]} 8. Qf4 {[%clk 1:32:40]} 8... g6 {[%clk
1:31:04]} 9. Bd3 {[%clk 1:32:43]} 9... Bg7 {[%clk 1:31:01]} 10. c3 {[%clk
1:32:31]} 10... O-O {[%clk 1:31:10]} 11. Qd2 {[%clk 1:32:30]} 11... b6 {[%clk
1:29:40]} 12. Qc2 {[%clk 1:32:27]} 12... Qc7 {[%clk 1:27:54]} 13. Bg5 {[%clk
1:31:32]} 13... a5 {[%clk 1:24:57]} 14. Qd2 {[%clk 1:14:04]} 14... Nd5 {[%clk
1:18:38]} 15. Bh6 {[%clk 1:07:43]} 15... f6 {[%clk 1:14:39]} 16. Be4 {[%clk
1:02:18]} 16... Be6 17. g3 {[%clk 0:55:00]} 17... g5 {[%clk 1:02:30]} 18. Bxg7
{[%clk 0:40:36]} 18... Kxg7 {[%clk 1:02:50]} 19. c4 {[%clk 0:34:23]} 19... Nb4
{[%clk 1:02:40]} 20. a3 {[%clk 0:34:49]} 20... Na6 {[%clk 1:02:31]} 21. d5
{[%clk 0:32:42]} 21... cxd5 {[%clk 0:53:42]} 22. cxd5 {[%clk 0:33:05]} 22... Nc5
{[%clk 0:53:56]} 23. Bxh7 {[%clk 0:29:36]} 23... Kxh7 {[%clk 0:49:10]} 24. Qc2+
{[%clk 0:30:02]} 24... Kg7 {[%clk 0:49:25]} 25. dxe6 {[%clk 0:29:50]} 25... Qc6
{[%clk 0:47:55]} 26. Qf5 {[%clk 0:27:41]} 26... Qb5 {[%clk 0:47:55]} 27. Nd4
{[%clk 0:19:41]} 27... Nd3+ {[%clk 0:44:11]} 28. Kd2 {[%clk 0:19:12]} 28...
Qxb2+ {[%clk 0:44:00]} 29. Kxd3 {[%clk 0:17:56]} 29... Rfd8 {[%clk 0:44:20]} 30.
Qe4 {[%clk 0:18:09]} 30... Rac8 {[%clk 0:44:41]} 31. Qe1 {[%clk 0:14:53]} 31...
Qc2+ {[%clk 0:44:28]} 0-1

[Variant "Standard"]
[Site "Europe Echecs"]

[Event "Championnat du monde jeunes U12"]
[Date "2024.11.22"]
[White "Matejka, Simon"]
[Black "Zhang, Sean"]
[WhiteElo "1924"]
[BlackElo "1789"]
[Round "7.34"]
[Result "1-0"]
[TimeControl "5400+30"]

1. e4 {[%clk 1:30:37]} 1... c5 {[%clk 1:30:53]} 2. Nf3 {[%clk 1:30:46]} 2... Nc6
{[%clk 1:31:19]} 3. Bb5 {[%clk 1:30:48]} 3... d6 {[%clk 1:31:37]} 4. O-O {[%clk
1:30:53]} 4... Bd7 {[%clk 1:32:05]} 5. Re1 {[%clk 1:31:08]} 5... a6 {[%clk
1:32:28]} 6. Bf1 {[%clk 1:31:22]} 6... Nf6 {[%clk 1:32:54]} 7. c3 {[%clk
1:31:18]} 7... Bg4 {[%clk 1:33:15]} 8. d4 {[%clk 1:30:17]} 8... cxd4 {[%clk
1:33:06]} 9. cxd4 {[%clk 1:30:44]} 9... e5 {[%clk 1:33:17]} 10. d5 {[%clk
1:28:05]} 10... Nd4 {[%clk 1:33:25]} 11. Be3 {[%clk 1:25:03]} 11... Nxf3+ {[%clk
1:33:38]} 12. gxf3 {[%clk 1:25:31]} 12... Bd7 {[%clk 1:33:48]} 13. a4 {[%clk
1:22:11]} 13... g6 {[%clk 1:31:26]} 14. Qb3 {[%clk 1:20:50]} 14... Bc8 {[%clk
1:21:18]} 15. Nd2 {[%clk 1:17:58]} 15... Bg7 {[%clk 1:16:18]} 16. Nc4 {[%clk
1:16:56]} 16... Qe7 {[%clk 1:13:46]} 17. Qb4 {[%clk 1:15:10]} 17... Bf8 {[%clk
1:03:36]} 18. Rac1 {[%clk 1:14:56]} 18... Nd7 {[%clk 1:03:00]} 19. Rc3 {[%clk
1:12:29]} 19... f5 {[%clk 1:02:25]} 20. Rec1 {[%clk 1:12:23]} 20... Kf7 {[%clk
0:58:14]} 21. Nb6 {[%clk 1:10:02]} 21... Nxb6 {[%clk 0:56:24]} 22. Qxb6 {[%clk
1:09:52]} 22... Bd7 {[%clk 0:56:13]} 23. Rc7 {[%clk 1:09:43]} 23... Rd8 {[%clk
0:56:08]} 24. Rxb7 {[%clk 1:09:25]} 24... f4 {[%clk 0:56:19]} 25. Bd2 {[%clk
1:08:59]} 25... Kg8 {[%clk 0:56:38]} 26. Kh1 {[%clk 1:08:10]} 26... g5 {[%clk
0:54:11]} 27. Rcc7 {[%clk 1:08:04]} 27... Qe8 {[%clk 0:54:14]} 28. Bg2 {[%clk
1:04:05]} 28... h5 {[%clk 0:54:20]} 29. Bb4 {[%clk 1:02:45]} 29... Rh6 30. Qxa6
{[%clk 1:01:18]} 30... g4 {[%clk 0:54:12]} 31. Qf1 {[%clk 0:57:35]} 31... Bxa4
{[%clk 0:53:38]} 32. Bd2 {[%clk 0:52:07]} 32... Rg6 {[%clk 0:49:48]} 33. fxg4
{[%clk 0:49:51]} 33... hxg4 {[%clk 0:49:55]} 34. f3 {[%clk 0:49:40]} 34... g3
{[%clk 0:49:51]} 35. Bh3 {[%clk 0:49:35]} 35... Rh6 {[%clk 0:49:25]} 36. Be6+
{[%clk 0:49:01]} 36... Rxe6 {[%clk 0:47:37]} 37. dxe6 {[%clk 0:49:07]} 37... Bc6
{[%clk 0:45:25]} 38. e7 {[%clk 0:48:12]} 38... Qh5 {[%clk 0:42:05]} 39. exf8=Q+
{[%clk 0:47:45]} 39... Rxf8 {[%clk 0:42:09]} 40. Rg7+ {[%clk 0:48:08]} 40... Kh8
{[%clk 0:42:15]} 41. Rh7+ {[%clk 0:48:32]} 41... Qxh7 {[%clk 0:42:41]} 42. Rxh7+
{[%clk 0:48:55]} 42... Kxh7 {[%clk 0:43:10]} 43. hxg3 {[%clk 0:49:11]} 43... Kg6
{[%clk 0:43:20]} 44. gxf4 {[%clk 0:49:19]} 1-0

[Variant "Standard"]
[Site "Europe Echecs"]

[Event "Championnat du monde jeunes U12"]
[Date "2024.11.22"]
[White "Simiyu Jadon"]
[Black "Hallmundarson, Birkir"]
[WhiteElo "1784"]
[BlackElo "1914"]
[Round "7.35"]
[Result "0-1"]
[TimeControl "5400+30"]

1. e4 {[%clk 1:30:57]} 1... c5 {[%clk 1:30:55]} 2. Nf3 {[%clk 1:31:23]} 2... Nc6
{[%clk 1:31:22]} 3. d4 {[%clk 1:31:45]} 3... cxd4 {[%clk 1:31:49]} 4. Nxd4
{[%clk 1:32:08]} 4... g6 {[%clk 1:32:12]} 5. c4 {[%clk 1:32:31]} 5... Bg7 {[%clk
1:32:38]} 6. Be3 {[%clk 1:32:53]} 6... Nf6 {[%clk 1:33:04]} 7. Nc3 {[%clk
1:33:17]} 7... Ng4 {[%clk 1:33:29]} 8. Qxg4 {[%clk 1:33:14]} 8... Nxd4 {[%clk
1:33:57]} 9. Qd1 {[%clk 1:33:30]} 9... e5 {[%clk 1:34:24]} 10. Be2 {[%clk
1:33:42]} 10... d6 {[%clk 1:30:17]} 11. O-O {[%clk 1:32:19]} 11... O-O {[%clk
1:29:29]} 12. Qd2 {[%clk 1:27:36]} 12... f5 {[%clk 1:24:05]} 13. f3 {[%clk
1:26:47]} 13... a6 {[%clk 1:22:06]} 14. Nd5 {[%clk 1:21:49]} 14... Be6 {[%clk
0:57:45]} 15. Kh1 {[%clk 1:19:49]} 15... Bxd5 {[%clk 0:56:05]} 16. cxd5 {[%clk
1:18:27]} 16... Qe7 {[%clk 0:48:13]} 17. Bd3 {[%clk 1:15:34]} 17... fxe4 {[%clk
0:46:23]} 18. Bxe4 {[%clk 1:09:53]} 18... Nf5 {[%clk 0:33:09]} 19. Bg5 {[%clk
1:01:07]} 19... Bf6 {[%clk 0:33:23]} 20. Bxf6 {[%clk 1:00:13]} 20... Qxf6 {[%clk
0:33:33]} 21. Bxf5 {[%clk 0:58:45]} 21... gxf5 {[%clk 0:32:57]} 22. Rac1 {[%clk
0:58:54]} 22... Rac8 {[%clk 0:33:10]} 23. Qb4 {[%clk 0:58:27]} 23... Qe7 {[%clk
0:33:19]} 24. g3 {[%clk 0:55:20]} 24... Rc7 {[%clk 0:32:39]} 25. Rxc7 {[%clk
0:53:50]} 25... Qxc7 {[%clk 0:33:08]} 26. Qd2 {[%clk 0:54:07]} 26... Qe7 {[%clk
0:30:00]} 27. Rc1 {[%clk 0:53:01]} 27... Re8 {[%clk 0:19:17]} 28. g4 {[%clk
0:20:19]} 28... fxg4 {[%clk 0:16:39]} 29. Rg1 {[%clk 0:20:42]} 29... Kh8 {[%clk
0:17:04]} 30. Rxg4 {[%clk 0:20:49]} 30... Rf8 {[%clk 0:17:14]} 31. Kg2 {[%clk
0:20:58]} 31... Qf7 {[%clk 0:16:42]} 32. Qd3 {[%clk 0:21:04]} 32... Rc8 {[%clk
0:12:57]} 33. Rc4 {[%clk 0:21:01]} 33... Rg8+ {[%clk 0:10:57]} 34. Kf2 {[%clk
0:17:19]} 34... b5 {[%clk 0:09:27]} 35. Rh4 {[%clk 0:16:09]} 35... Qa7+ {[%clk
0:09:43]} 36. Ke2 {[%clk 0:07:04]} 36... Rg2+ {[%clk 0:10:05]} 37. Ke1 {[%clk
0:07:21]} 37... Qg1+ {[%clk 0:10:28]} 0-1

[Variant "Standard"]
[Site "Europe Echecs"]

[Event "Championnat du monde jeunes U12"]
[Date "2024.11.22"]
[White "Chen, Jun-Wei"]
[Black "Yusupov, Rauf"]
[WhiteElo "1907"]
[BlackElo "1763"]
[Round "7.36"]
[Result "1-0"]
[TimeControl "5400+30"]

1. e4 {[%clk 1:30:55]} 1... e5 {[%clk 1:30:55]} 2. Nf3 {[%clk 1:31:14]} 2... Nf6
{[%clk 1:31:21]} 3. Nxe5 {[%clk 1:31:27]} 3... d6 {[%clk 1:31:46]} 4. Nf3 {[%clk
1:31:50]} 4... Nxe4 {[%clk 1:32:11]} 5. Nc3 {[%clk 1:32:11]} 5... Nf6 {[%clk
1:32:33]} 6. d4 {[%clk 1:32:22]} 6... d5 {[%clk 1:32:28]} 7. Bg5 {[%clk
1:30:18]} 7... c6 {[%clk 1:32:34]} 8. Bd3 {[%clk 1:30:11]} 8... h6 {[%clk
1:31:32]} 9. Bh4 {[%clk 1:29:52]} 9... Bd6 {[%clk 1:30:51]} 10. O-O {[%clk
1:28:48]} 10... O-O {[%clk 1:28:59]} 11. Qd2 {[%clk 1:22:40]} 11... Nbd7 {[%clk
1:26:55]} 12. Rfe1 {[%clk 1:20:16]} 12... Qc7 {[%clk 1:26:01]} 13. Bxf6 {[%clk
1:16:57]} 13... Nxf6 {[%clk 1:25:36]} 14. Ne5 {[%clk 1:17:16]} 14... Bxe5 {[%clk
1:21:28]} 15. dxe5 {[%clk 1:14:01]} 15... Nd7 {[%clk 1:20:08]} 16. f4 {[%clk
1:11:17]} 16... Qb6+ {[%clk 1:15:55]} 17. Kh1 {[%clk 1:11:31]} 17... Qxb2 {[%clk
1:08:59]} 18. f5 {[%clk 1:07:06]} 18... d4 {[%clk 1:02:18]} 19. Na4 {[%clk
0:56:06]} 19... Qa3 {[%clk 1:02:04]} 20. f6 {[%clk 0:55:12]} 20... Qxa4 {[%clk
0:55:50]} 21. Qf4 {[%clk 0:52:43]} 21... Qa5 {[%clk 0:42:42]} 22. fxg7 {[%clk
0:51:33]} 22... Kxg7 {[%clk 0:42:39]} 23. Qg4+ {[%clk 0:52:00]} 23... Kh8 {[%clk
0:41:39]} 24. Qf5 {[%clk 0:52:29]} 24... Nf6 {[%clk 0:40:32]} 25. Qxf6+ {[%clk
0:52:53]} 25... Kg8 {[%clk 0:40:59]} 26. Qxh6 {[%clk 0:53:11]} 1-0

[Variant "Standard"]
[Site "Europe Echecs"]

[Event "Championnat du monde jeunes U12"]
[Date "2024.11.22"]
[White "Bundan, Edward"]
[Black "Ilcic, Aleksa"]
[WhiteElo "1905"]
[BlackElo "1757"]
[Round "7.37"]
[Result "1-0"]
[TimeControl "5400+30"]

1. e4 {[%clk 1:30:57]} 1... c5 {[%clk 1:30:52]} 2. Nf3 {[%clk 1:31:23]} 2... Nc6
{[%clk 1:31:17]} 3. d4 {[%clk 1:31:44]} 3... cxd4 {[%clk 1:31:41]} 4. Nxd4
{[%clk 1:32:04]} 4... Nf6 {[%clk 1:32:04]} 5. Nc3 {[%clk 1:32:27]} 5... e5
{[%clk 1:32:27]} 6. Ndb5 {[%clk 1:32:47]} 6... d6 {[%clk 1:32:47]} 7. Bg5 {[%clk
1:33:02]} 7... a6 {[%clk 1:33:05]} 8. Na3 {[%clk 1:33:10]} 8... b5 {[%clk
1:33:24]} 9. Nd5 {[%clk 1:33:29]} 9... Be7 {[%clk 1:33:44]} 10. Bxf6 {[%clk
1:33:49]} 10... Bxf6 {[%clk 1:34:06]} 11. c3 {[%clk 1:34:13]} 11... Bg5 {[%clk
1:34:06]} 12. Nc2 {[%clk 1:34:31]} 12... O-O {[%clk 1:34:25]} 13. a4 {[%clk
1:34:07]} 13... bxa4 {[%clk 1:34:50]} 14. Rxa4 {[%clk 1:34:28]} 14... a5 {[%clk
1:35:10]} 15. Bc4 {[%clk 1:34:43]} 15... Rb8 {[%clk 1:35:28]} 16. b3 {[%clk
1:34:56]} 16... Kh8 {[%clk 1:35:49]} 17. Nce3 {[%clk 1:34:40]} 17... g6 {[%clk
1:36:08]} 18. h4 {[%clk 1:34:39]} 18... Bxh4 {[%clk 1:34:46]} 19. g3 {[%clk
1:34:42]} 19... Bg5 {[%clk 1:35:08]} 20. f4 {[%clk 1:34:32]} 20... exf4 {[%clk
1:35:27]} 21. gxf4 {[%clk 1:34:51]} 21... Bh4+ {[%clk 1:35:50]} 22. Kf1 {[%clk
1:35:03]} 22... Ne7 {[%clk 1:15:34]} 23. Ra2 {[%clk 0:57:24]} 23... Nxd5 {[%clk
0:59:05]} 24. Nxd5 {[%clk 0:57:16]} 24... h5 {[%clk 0:54:54]} 25. Rah2 {[%clk
0:51:30]} 25... Bg4 {[%clk 0:54:31]} 26. Qd4+ {[%clk 0:50:51]} 1-0

[Variant "Standard"]
[Site "Europe Echecs"]

[Event "Championnat du monde jeunes U12"]
[Date "2024.11.22"]
[White "Yang, Maxwell"]
[Black "Wang, Luis"]
[WhiteElo "1889"]
[BlackElo "1751"]
[Round "7.38"]
[Result "1-0"]
[TimeControl "5400+30"]

1. d4 {[%clk 1:30:47]} 1... Nf6 {[%clk 1:30:52]} 2. c4 {[%clk 1:31:12]} 2... g6
{[%clk 1:31:01]} 3. Nc3 {[%clk 1:31:37]} 3... Bg7 {[%clk 1:28:47]} 4. e4 {[%clk
1:31:54]} 4... d6 {[%clk 1:28:45]} 5. Nf3 {[%clk 1:31:30]} 5... Nbd7 {[%clk
1:27:27]} 6. Be2 {[%clk 1:31:05]} 6... O-O {[%clk 1:26:33]} 7. O-O {[%clk
1:31:21]} 7... Re8 {[%clk 1:23:25]} 8. e5 {[%clk 1:30:48]} 8... dxe5 {[%clk
1:22:35]} 9. dxe5 {[%clk 1:30:33]} 9... Ng4 {[%clk 1:22:31]} 10. e6 {[%clk
1:30:54]} 10... fxe6 {[%clk 1:21:19]} 11. Ng5 {[%clk 1:31:18]} 11... Nxf2 {[%clk
1:13:48]} 12. Rxf2 {[%clk 1:30:14]} 12... Ne5 {[%clk 1:09:38]} 13. Be3 {[%clk
1:30:17]} 13... a6 {[%clk 1:05:46]} 14. Qc2 {[%clk 1:30:13]} 14... h6 {[%clk
1:02:08]} 15. Rd1 {[%clk 1:30:18]} 15... Bd7 {[%clk 0:57:11]} 16. Nxe6 {[%clk
1:30:38]} 16... Qc8 {[%clk 0:57:13]} 17. Nxg7 {[%clk 1:31:02]} 17... Kxg7 {[%clk
0:57:33]} 18. Bd4 {[%clk 1:31:29]} 18... Bf5 {[%clk 0:57:09]} 19. Bxe5+ {[%clk
1:31:54]} 19... Kh7 {[%clk 0:56:59]} 20. Bd3 {[%clk 1:32:19]} 20... Bxd3 {[%clk
0:56:44]} 21. Qxd3 {[%clk 1:32:39]} 21... Qe6 {[%clk 0:55:23]} 22. Rdf1 {[%clk
1:32:41]} 22... Rf8 {[%clk 0:54:34]} 23. Rxf8 {[%clk 1:32:59]} 23... Rxf8 {[%clk
0:54:33]} 24. Rxf8 {[%clk 1:33:23]} 24... Qxe5 {[%clk 0:54:40]} 25. Rf7+ {[%clk
1:33:47]} 25... Kh8 {[%clk 0:55:01]} 26. Qd8# {[%clk 1:32:51]} 1-0

[Variant "Standard"]
[Site "Europe Echecs"]

[Event "Championnat du monde jeunes U12"]
[Date "2024.11.22"]
[White "Lee, Daniel Joshua"]
[Black "Huseynov, Ahmed"]
[WhiteElo "1765"]
[BlackElo "1886"]
[Round "7.39"]
[Result "0-1"]
[TimeControl "5400+30"]

1. e4 {[%clk 1:30:58]} 1... e6 {[%clk 1:30:55]} 2. d4 {[%clk 1:31:20]} 2... d5
{[%clk 1:31:22]} 3. Nd2 {[%clk 1:31:46]} 3... Be7 {[%clk 1:29:52]} 4. Bd3 {[%clk
1:29:09]} 4... c5 {[%clk 1:29:30]} 5. dxc5 {[%clk 1:28:34]} 5... Nc6 {[%clk
1:28:40]} 6. Ngf3 {[%clk 1:25:26]} 6... Nf6 {[%clk 1:29:03]} 7. O-O {[%clk
1:18:42]} 7... O-O {[%clk 1:28:25]} 8. exd5 {[%clk 1:10:29]} 8... Qxd5 {[%clk
1:18:42]} 9. Nb3 {[%clk 1:07:42]} 9... Nd7 {[%clk 1:01:36]} 10. Ng5 {[%clk
0:47:16]} 10... h6 {[%clk 0:47:29]} 11. c4 {[%clk 0:37:10]} 11... Qe5 {[%clk
0:46:30]} 12. Re1 {[%clk 0:18:48]} 12... Qc7 {[%clk 0:45:19]} 13. Ne4 {[%clk
0:16:04]} 13... f5 {[%clk 0:44:52]} 14. Nd6 {[%clk 0:12:19]} 14... Nxc5 {[%clk
0:43:48]} 15. Nxc8 {[%clk 0:12:17]} 15... Qxc8 {[%clk 0:43:44]} 16. Nxc5 {[%clk
0:11:45]} 16... Bxc5 {[%clk 0:43:55]} 17. Be3 {[%clk 0:07:12]} 17... Bxe3 {[%clk
0:40:27]} 18. Rxe3 {[%clk 0:07:38]} 18... e5 {[%clk 0:39:01]} 19. Qh5 {[%clk
0:04:58]} 19... Qe8 {[%clk 0:38:55]} 20. Qh3 {[%clk 0:04:09]} 20... Nd4 {[%clk
0:34:43]} 21. Rg3 {[%clk 0:02:04]} 21... Kh8 {[%clk 0:33:21]} 22. Re1 {[%clk
0:01:38]} 22... e4 {[%clk 0:33:30]} 23. f3 {[%clk 0:00:49]} 23... exd3 {[%clk
0:33:00]} 24. Rxe8 {[%clk 0:01:09]} 24... d2 {[%clk 0:32:08]} 25. Re7 d1=Q+
{[%clk 0:32:26]} 26. Kf2 {[%clk 0:00:53]} 26... Qd2+ {[%clk 0:32:48]} 27. Kf1
{[%clk 0:01:13]} 27... Qc1+ {[%clk 0:31:09]} 28. Kf2 {[%clk 0:01:21]} 28...
Qxb2+ {[%clk 0:30:45]} 29. Kf1 {[%clk 0:01:36]} 29... Qa1+ {[%clk 0:29:33]} 30.
Kf2 {[%clk 0:01:59]} 30... Qxa2+ {[%clk 0:29:56]} 31. Kf1 {[%clk 0:02:26]} 31...
Qxc4+ {[%clk 0:30:10]} 32. Kf2 {[%clk 0:02:40]} 32... Qc2+ {[%clk 0:27:02]} 33.
Kf1 {[%clk 0:03:06]} 33... Qb1+ {[%clk 0:27:26]} 34. Kf2 {[%clk 0:03:09]} 34...
Qb6 {[%clk 0:27:25]} 35. Kf1 {[%clk 0:00:45]} 35... Ne6 {[%clk 0:27:34]} 36. Rg6
{[%clk 0:00:34]} 36... Qb5+ {[%clk 0:27:52]} 37. Kg1 {[%clk 0:00:33]} 37... Qc5+
{[%clk 0:28:16]} 38. Kf1 {[%clk 0:00:54]} 38... Qxe7 {[%clk 0:28:38]} 39. Rxh6+
{[%clk 0:01:09]} 39... gxh6 {[%clk 0:29:01]} 40. Qxh6+ {[%clk 0:01:34]} 40...
Kg8 {[%clk 0:29:20]} 0-1

[Variant "Standard"]
[Site "Europe Echecs"]

[Event "Championnat du monde jeunes U12"]
[Date "2024.11.22"]
[White "Mikolavicius, Julius"]
[Black "Gazzato, Nicolo`"]
[WhiteElo "1746"]
[BlackElo "1868"]
[Round "7.40"]
[Result "1-0"]
[TimeControl "5400+30"]

1. e4 {[%clk 1:30:59]} 1... e6 {[%clk 1:30:52]} 2. d4 {[%clk 1:31:25]} 2... d5
{[%clk 1:31:17]} 3. Nd2 {[%clk 1:31:51]} 3... c5 {[%clk 1:31:41]} 4. exd5 {[%clk
1:32:06]} 4... Qxd5 {[%clk 1:32:06]} 5. Ngf3 {[%clk 1:32:23]} 5... cxd4 {[%clk
1:32:28]} 6. Bc4 {[%clk 1:32:48]} 6... Qd6 {[%clk 1:32:53]} 7. O-O {[%clk
1:33:10]} 7... Nf6 {[%clk 1:33:15]} 8. Nb3 {[%clk 1:33:35]} 8... Nc6 {[%clk
1:33:27]} 9. Nbxd4 {[%clk 1:33:49]} 9... Nxd4 {[%clk 1:33:51]} 10. Nxd4 {[%clk
1:34:11]} 10... Be7 {[%clk 1:33:43]} 11. Re1 {[%clk 1:33:47]} 11... O-O {[%clk
1:32:49]} 12. c3 {[%clk 1:32:02]} 12... a6 {[%clk 1:28:10]} 13. Bb3 {[%clk
1:32:22]} 13... Qc7 {[%clk 1:27:58]} 14. Qf3 {[%clk 1:30:37]} 14... Bd6 {[%clk
0:53:52]} 15. h3 {[%clk 1:30:55]} 15... Rd8 {[%clk 0:42:07]} 16. Bg5 {[%clk
1:29:25]} 16... Be7 {[%clk 0:41:21]} 17. Rad1 {[%clk 1:25:23]} 17... h6 {[%clk
0:29:30]} 18. Bh4 {[%clk 1:25:30]} 18... Rb8 {[%clk 0:24:30]} 19. Qe2 {[%clk
1:13:18]} 19... Kh8 {[%clk 0:18:03]} 20. Nf5 {[%clk 1:09:33]} 20... Rxd1 {[%clk
0:17:13]} 21. Bxd1 {[%clk 1:09:52]} 21... exf5 {[%clk 0:15:35]} 22. Qxe7 {[%clk
1:10:14]} 22... Qxe7 {[%clk 0:15:33]} 23. Rxe7 {[%clk 1:10:42]} 23... Nd5 {[%clk
0:14:27]} 24. Re8+ {[%clk 1:09:48]} 24... Kh7 {[%clk 0:14:53]} 25. Bc2 {[%clk
1:09:30]} 25... g6 {[%clk 0:08:39]} 26. Bb3 {[%clk 1:09:27]} 26... Nf4 {[%clk
0:07:30]} 27. Bf6 {[%clk 1:09:32]} 27... g5 {[%clk 0:07:44]} 28. Bxf7 {[%clk
1:09:46]} 28... Ne2+ {[%clk 0:08:00]} 29. Kf1 {[%clk 1:09:32]} 29... Be6 {[%clk
0:07:36]} 30. Rxb8 {[%clk 1:09:52]} 30... Bxf7 {[%clk 0:07:50]} 31. Kxe2 {[%clk
1:10:17]} 31... Kg6 {[%clk 0:08:18]} 32. Bd4 {[%clk 1:10:35]} 32... Bd5 {[%clk
0:08:48]} 33. b3 {[%clk 1:10:46]} 33... Bxg2 {[%clk 0:09:17]} 34. f3 {[%clk
1:10:49]} 34... Bxh3 {[%clk 0:09:46]} 35. Rxb7 {[%clk 1:11:09]} 35... g4 {[%clk
0:10:06]} 36. fxg4 {[%clk 1:11:29]} 36... Bxg4+ {[%clk 0:10:34]} 37. Kf2 {[%clk
1:11:50]} 37... h5 {[%clk 0:11:00]} 38. Rb6+ {[%clk 1:12:06]} 1-0

[Variant "Standard"]
[Site "Europe Echecs"]

[Event "Championnat du monde jeunes U12"]
[Date "2024.11.22"]
[White "Wang, William Kaiyuan"]
[Black "Ivarlac, Vladislav"]
[WhiteElo "1715"]
[BlackElo "1867"]
[Round "7.41"]
[Result "0-1"]
[TimeControl "5400+30"]

1. e4 {[%clk 1:30:59]} 1... e6 {[%clk 1:30:55]} 2. d4 {[%clk 1:31:24]} 2... d5
{[%clk 1:31:21]} 3. Nc3 {[%clk 1:31:51]} 3... Bb4 {[%clk 1:31:41]} 4. Ne2 {[%clk
1:32:16]} 4... Nf6 {[%clk 1:31:10]} 5. Bg5 {[%clk 1:31:52]} 5... h6 {[%clk
1:30:50]} 6. Bxf6 {[%clk 1:31:34]} 6... Qxf6 {[%clk 1:31:08]} 7. e5 {[%clk
1:30:42]} 7... Qe7 {[%clk 1:29:21]} 8. a3 {[%clk 1:29:59]} 8... Ba5 {[%clk
1:29:34]} 9. Qd2 {[%clk 1:25:23]} 9... Bd7 {[%clk 1:27:56]} 10. Ng3 {[%clk
1:16:21]} 10... g6 {[%clk 1:24:43]} 11. O-O-O {[%clk 1:08:28]} 11... c6 {[%clk
1:21:24]} 12. Kb1 {[%clk 0:59:34]} 12... b5 {[%clk 1:19:19]} 13. b4 {[%clk
0:56:35]} 13... Bc7 {[%clk 1:19:11]} 14. Na2 {[%clk 0:56:23]} 14... a5 {[%clk
1:18:16]} 15. c3 {[%clk 0:53:07]} 15... Bc8 {[%clk 1:16:23]} 16. Kb2 {[%clk
0:41:35]} 16... Nd7 {[%clk 1:16:18]} 17. h4 {[%clk 0:38:04]} 17... h5 {[%clk
1:14:38]} 18. f4 {[%clk 0:32:26]} 18... Bd8 {[%clk 1:14:19]} 19. Ra1 {[%clk
0:27:16]} 19... Nb6 {[%clk 1:13:48]} 20. Nc1 {[%clk 0:25:43]} 20... Nc4+ {[%clk
1:12:30]} 21. Bxc4 {[%clk 0:26:07]} 21... bxc4 {[%clk 1:12:52]} 22. Nce2 {[%clk
0:25:09]} 22... Qb7 {[%clk 1:12:41]} 23. Kc2 {[%clk 0:15:17]} 23... Be7 {[%clk
1:11:17]} 24. Qc1 {[%clk 0:12:47]} 24... Bd7 {[%clk 1:10:11]} 25. Nf1 {[%clk
0:10:41]} 25... Kd8 {[%clk 1:09:43]} 26. g3 {[%clk 0:09:48]} 26... Kc7 {[%clk
1:10:03]} 27. Ne3 {[%clk 0:10:03]} 27... Ra6 {[%clk 1:09:45]} 28. Qb2 {[%clk
0:10:03]} 28... Rha8 {[%clk 1:09:38]} 29. Rhb1 {[%clk 0:09:06]} 29... Qa7 {[%clk
1:08:25]} 30. bxa5 {[%clk 0:05:49]} 30... Rxa5 {[%clk 1:08:36]} 31. a4 {[%clk
0:05:44]} 31... Rxa4 {[%clk 1:07:57]} 32. Rxa4 {[%clk 0:06:13]} 32... Qxa4+
{[%clk 1:08:16]} 33. Kd2 {[%clk 0:06:16]} 33... Qa2 {[%clk 1:07:31]} 34. Nc2
{[%clk 0:06:16]} 34... Qxb2 {[%clk 1:07:50]} 35. Rxb2 {[%clk 0:06:42]} 35... c5
{[%clk 1:07:49]} 36. Ke3 {[%clk 0:05:00]} 36... cxd4+ {[%clk 1:07:44]} 37. Ncxd4
Bc5 {[%clk 1:07:33]} 38. Kd2 {[%clk 0:04:04]} 38... Ra1 {[%clk 1:06:45]} 39. Kc2
{[%clk 0:01:08]} 39... Ba4+ {[%clk 1:06:56]} 40. Kd2 {[%clk 0:01:28]} 40... Kc8
{[%clk 1:06:50]} 41. Ke3 {[%clk 0:00:51]} 41... Ba3 {[%clk 1:06:52]} 42. Rb6
{[%clk 0:01:08]} 42... Bd7 {[%clk 1:06:34]} 43. Kd2 {[%clk 0:01:16]} 43... Kc7
{[%clk 1:06:44]} 44. Nc2 {[%clk 0:01:02]} 44... Ra2 {[%clk 1:06:48]} 45. Rb1
{[%clk 0:01:05]} 45... Ba4 {[%clk 1:07:07]} 46. Nd4 {[%clk 0:01:34]} 46... Bc5
{[%clk 1:06:57]} 47. Rc1 {[%clk 0:00:47]} 47... Bxd4 {[%clk 1:07:15]} 48. cxd4
{[%clk 0:01:12]} 48... Kc6 {[%clk 1:07:29]} 49. Kc3 {[%clk 0:00:40]} 49... Rxc2+
{[%clk 1:07:52]} 50. Rxc2 {[%clk 0:01:06]} 50... Bxc2 {[%clk 1:08:14]} 51. Kxc2
{[%clk 0:01:29]} 51... Kb5 {[%clk 1:08:40]} 52. Kc3 {[%clk 0:01:53]} 52... Ka4
{[%clk 1:09:04]} 0-1

[Variant "Standard"]
[Site "Europe Echecs"]